bitfinex-derivatives/quotes_SOLF0:USTF0_20220108
["timestamp","ask_amount","ask_price","bid_price","bid_amount"]
[1641611838894,27.66479,138.85,138.78,27.66479]
[1641611839096,27.66479,138.85,138.79,1.68956504]
[1641611839698,34.86680656,138.85,138.79,1.68956504]
[1641611839999,3.40259242,138.84,138.78,27.66479]
[1641611840397,3.40259242,138.84,138.81,4.0]
[1641611841397,3.40259242,138.84,138.78,27.66479]
[1641611841599,27.66479,138.85,138.81,4.0]
[1641611841800,27.66479,138.85,138.78,27.66479]
[1641611842100,38.20479,138.85,138.78,27.66479]
[1641611842501,38.20479,138.85,138.79,1.69066405]
[1641611843902,45.40680656,138.85,138.78,1.69066405]
[1641611844102,45.40680656,138.85,138.78,5.69066405]
[1641611844603,45.40680656,138.85,138.78,1.69066405]
[1641611844802,3.40365179,138.84,138.77,37.9076]
[1641611845204,3.40365179,138.84,138.75,49.94395739]
[1641611845403,7.20357297,138.82,138.75,15.05115739]
[1641611845603,14.52657297,138.82,138.76,4.0]
[1641611845904,14.52657297,138.82,138.77,4.0]
[1641611846104,27.66479,138.81,138.77,4.0]
[1641611846304,27.66479,138.81,138.74,78.07024739]
[1641611846507,27.66479,138.81,138.77,1.69061742]
[1641611847310,27.66479,138.81,138.75,24.64652303]
[1641611847912,27.66479,138.81,138.75,16.74177481]
[1641611848211,27.66479,138.81,138.77,4.0]
[1641611848812,27.66479,138.81,138.74,50.40545739]
[1641611849012,34.86888192,138.81,138.77,4.0]
[1641611849511,34.86888192,138.81,138.74,50.40545739]
[1641611849711,34.86888192,138.81,138.72,15.05115739]
[1641611850113,34.86888192,138.81,138.72,42.71594739]
[1641611850511,34.86888192,138.81,138.75,4.0]
[1641611850713,34.86888192,138.81,138.72,42.71594739]
[1641611850913,34.86888192,138.81,138.74,4.0]
[1641611851513,34.86888192,138.81,138.73,1.69026377]
[1641611851713,34.86888192,138.81,138.76,4.0]
[1641611852314,62.53367192,138.81,138.76,4.0]
[1641611852815,62.53367192,138.81,138.75,1.69026377]
[1641611852816,7.20538963,138.78,138.71,19.05115739]
[1641611853015,5.026,138.78,138.71,15.05115739]
[1641611853314,5.026,138.78,138.76,4.0]
[1641611854315,27.66479,138.77,138.76,4.0]
[1641611854816,5.026,138.78,138.76,4.0]
[1641611856218,5.026,138.78,138.71,4.0]
[1641611858225,32.69079,138.78,138.71,31.66479]
[1641611858424,27.66479,138.78,138.71,31.66479]
[1641611858624,40.15643923,138.78,138.69,35.1711]
[1641611858825,44.15643923,138.78,138.69,35.1711]
[1641611859824,7.20668781,138.76,138.69,35.1711]
[1641611860325,27.66479,138.75,138.69,35.1711]
[1641611860527,35.38079,138.75,138.69,35.1711]
[1641611860728,35.38079,138.75,138.67,27.66479]
[1641611864130,7.20824623,138.73,138.66,35.6804]
[1641611864331,27.66479,138.69,138.66,35.6804]
[1641611864531,32.67179,138.69,138.62,15.05115739]
[1641611865831,32.67179,138.69,138.6,27.66479]
[1641611866233,24.4841221,138.69,138.6,27.66479]
[1641611866433,24.4841221,138.69,138.6,31.66479]
[1641611866632,19.4771221,138.69,138.61,4.0]
[1641611866933,19.4771221,138.69,138.62,4.0]
[1641611867132,19.4771221,138.69,138.61,4.0]
[1641611867533,7.20824623,138.73,138.63,4.0]
[1641611867733,35.7709,138.74,138.65,4.0]
[1641611868133,35.7709,138.74,138.64,39.2169]
[1641611868335,35.7709,138.74,138.67,27.66479]
[1641611869834,42.97862668,138.74,138.67,27.66479]
[1641611875440,54.13662668,138.74,138.65,27.66479]
[1641611876340,50.13662668,138.74,138.65,27.66479]
[1641611877142,50.13662668,138.74,138.65,31.66479]
[1641611877540,50.13662668,138.74,138.65,27.66479]
[1641611881544,5.08881771,138.72,138.65,32.75360771]
[1641611882346,5.08881771,138.72,138.66,5.08881771]
[1641611882545,5.08881771,138.72,138.66,9.08881771]
[1641611882745,5.08881771,138.72,138.66,5.08881771]
[1641611883150,5.08881771,138.73,138.66,5.08881771]
[1641611883949,5.08881771,138.73,138.65,27.66479]
[1641611883950,5.08881771,138.73,138.67,5.08881771]
[1641611884553,27.66479,138.72,138.67,5.08881771]
[1641611884753,38.65060771,138.72,138.66,5.08881771]
[1641611887059,5.08881771,138.71,138.67,5.08881771]
[1641611888559,32.75360771,138.71,138.67,5.08881771]
[1641611889563,5.08881771,138.71,138.67,5.08881771]
[1641611890561,32.75360771,138.71,138.67,5.08881771]
[1641611891665,5.08881771,138.7,138.68,5.08881771]
[1641611892365,12.45481771,138.7,138.68,5.08881771]
[1641611895467,5.08881771,138.7,138.68,5.08881771]
[1641611895668,10.94,138.72,138.69,4.0]
[1641611895965,15.05115739,138.73,138.69,5.688]
[1641611896868,15.05115739,138.73,138.7,1.69369834]
[1641611896869,3.41724094,138.73,138.7,1.69369834]
[1641611897769,3.41724094,138.73,138.69,27.66479]
[1641611898370,3.41724094,138.73,138.66,22.97210181]
[1641611899974,18.46839833,138.73,138.66,16.745551]
[1641611900574,18.46839833,138.73,138.66,24.66649542]
[1641611901174,4.0,138.72,138.66,24.66649542]
[1641611901377,18.46839833,138.73,138.66,24.66649542]
[1641611901577,15.05115739,138.72,138.66,1.69439361]
[1641611902278,18.46839833,138.72,138.66,1.69439361]
[1641611903982,27.66479,138.71,138.66,1.69439361]
[1641611904182,32.98979,138.71,138.65,24.67134589]
[1641611904384,5.325,138.71,138.65,24.67134589]
[1641611905882,9.325,138.71,138.65,24.67134589]
[1641611906083,27.66479,138.67,138.65,24.67134589]
[1641611906283,34.83679,138.67,138.65,24.67134589]
[1641611906483,34.83679,138.67,138.65,22.97695228]
[1641611906684,34.83679,138.67,138.62,68.06004524]
[1641611906884,34.83679,138.67,138.62,27.66479]
[1641611907787,34.83679,138.67,138.63,1.69376234]
[1641611907983,7.172,138.67,138.63,1.69376234]
[1641611909987,3.41642741,138.66,138.62,27.66479]
[1641611910785,7.172,138.67,138.62,27.66479]
[1641611911586,34.0335,138.68,138.62,27.66479]
[1641611911787,3.41170732,138.66,138.62,27.66479]
[1641611911987,3.41170732,138.66,138.59,39.3879]
[1641611912288,3.41170732,138.66,138.59,35.3879]
[1641611912489,3.41170732,138.66,138.6,27.66479]
[1641611912691,31.07649732,138.67,138.6,27.66479]
[1641611913190,35.07649732,138.67,138.6,27.66479]
[1641611913388,31.07649732,138.67,138.6,27.66479]
[1641611913590,7.41170732,138.66,138.59,35.3879]
[1641611914290,4.0,138.66,138.58,27.66479]
[1641611914589,27.66479,138.64,138.58,27.66479]
[1641611914890,32.47079,138.64,138.58,27.66479]
[1641611919098,4.806,138.64,138.55,4.0]
[1641611919301,61.67708514,138.68,138.55,4.0]
[1641611919901,61.67708514,138.68,138.54,72.7401]
[1641611920100,61.67708514,138.68,138.55,4.0]
[1641611920500,3.39893536,138.67,138.55,5.6820511]
[1641611920802,27.66479,138.66,138.58,27.66479]
[1641611925204,4.0,138.63,138.58,27.66479]
[1641611925409,4.725,138.63,138.58,27.66479]
[1641611926410,34.87641514,138.66,138.58,27.66479]
[1641611926614,27.66479,138.66,138.58,36.53979]
[1641611926812,4.0,138.67,138.58,28.34706866]
[1641611927011,59.72465739,138.68,138.62,27.66479]
[1641611927212,59.72465739,138.68,138.62,34.40279]
[1641611927413,48.6735,138.68,138.62,34.40279]
[1641611927615,44.6735,138.68,138.62,34.40279]
[1641611927913,15.05115739,138.7,138.62,41.60843923]
[1641611928713,4.0,138.74,138.63,132.76268804]
[1641611928914,4.0,138.74,138.7,27.66479]
[1641611929115,15.05115739,138.75,138.7,27.66479]
[1641611930216,60.06625739,138.77,138.7,27.66479]
[1641611930416,25.73115739,138.77,138.7,27.66479]
[1641611931416,10.68,138.77,138.7,27.66479]
[1641611934621,10.68,138.77,138.68,27.66479]
[1641611934820,4.0,138.75,138.65,33.041]
[1641611935022,4.0,138.69,138.64,60.92819]
[1641611935323,5.891,138.69,138.63,22.25654702]
[1641611935521,9.891,138.69,138.63,15.05115739]
[1641611935721,5.891,138.69,138.62,27.66479]
[1641611938426,5.891,138.69,138.58,32.8125]
[1641611938427,4.0,138.63,138.58,32.8125]
[1641611938625,4.0,138.62,138.58,32.8125]
[1641611938824,5.745,138.63,138.56,51.13245739]
[1641611939025,4.0,138.62,138.56,42.71594739]
[1641611939224,4.0,138.62,138.56,27.66479]
[1641611940730,33.40979,138.63,138.56,27.66479]
[1641611941431,4.0,138.59,138.54,27.66479]
[1641611941632,9.627,138.59,138.54,27.66479]
[1641611942333,5.627,138.59,138.54,27.66479]
[1641611942732,4.0,138.62,138.54,27.66479]
[1641611942931,4.0,138.61,138.54,27.66479]
[1641611943336,4.0,138.6,138.54,27.66479]
[1641611943535,5.331,138.62,138.54,27.66479]
[1641611943834,9.331,138.62,138.54,27.66479]
[1641611944233,4.0,138.62,138.54,27.66479]
[1641611945132,4.0,138.62,138.57,27.66479]
[1641611947033,4.0,138.58,138.57,27.66479]
[1641611947235,4.0,138.58,138.51,49.67535739]
[1641611947236,11.543,138.58,138.52,15.05115739]
[1641611947933,7.543,138.58,138.51,27.66479]
[1641611948133,27.66479,138.61,138.51,27.66479]
[1641611948333,7.21292556,138.64,138.51,34.55679]
[1641611948534,4.0,138.61,138.51,34.55679]
[1641611948735,7.21292556,138.64,138.51,34.55679]
[1641611948937,4.0,138.61,138.51,34.55679]
[1641611949135,4.0,138.61,138.55,27.66479]
[1641611949333,4.0,138.6,138.55,27.66479]
[1641611950835,7.21292556,138.64,138.55,27.66479]
[1641611951035,4.0,138.6,138.55,27.66479]
[1641611951237,7.21292556,138.64,138.55,27.66479]
[1641611951238,4.0,138.61,138.55,27.66479]
[1641611951438,4.0,138.62,138.55,27.66479]
[1641611951636,14.92,138.65,138.55,27.66479]
[1641611952235,10.92,138.65,138.55,27.66479]
[1641611952436,4.0,138.64,138.55,27.66479]
[1641611952836,4.0,138.63,138.55,27.66479]
[1641611953045,6.207,138.64,138.55,27.66479]
[1641611953236,4.0,138.63,138.55,27.66479]
[1641611953636,6.207,138.64,138.55,27.66479]
[1641611953838,4.0,138.62,138.55,27.66479]
[1641611954038,6.207,138.64,138.55,27.66479]
[1641611954438,4.0,138.62,138.55,27.66479]
[1641611954638,4.0,138.63,138.55,27.66479]
[1641611954838,4.0,138.64,138.55,27.66479]
[1641611955339,10.92,138.66,138.55,55.32958]
[1641611955538,4.0,138.63,138.55,55.32958]
[1641611955739,6.515,138.63,138.55,55.32958]
[1641611955939,4.0,138.62,138.55,55.32958]
[1641611956240,6.515,138.63,138.55,55.32958]
[1641611956641,4.0,138.62,138.55,55.32958]
[1641611956839,6.515,138.63,138.55,55.32958]
[1641611957040,4.0,138.62,138.55,55.32958]
[1641611957239,32.73678727,138.64,138.55,55.32958]
[1641611957441,4.0,138.62,138.55,55.32958]
[1641611958140,4.0,138.6,138.55,55.32958]
[1641611958941,5.07199727,138.63,138.55,55.32958]
[1641611959142,9.07199727,138.63,138.55,55.32958]
[1641611959341,5.07199727,138.63,138.6,27.66479]
[1641611959541,5.07199727,138.63,138.6,34.13779]
[1641611959742,5.07199727,138.65,138.6,6.473]
[1641611959943,4.0,138.64,138.6,6.473]
[1641611960143,5.07199727,138.65,138.6,6.473]
[1641611960545,4.0,138.63,138.6,6.473]
[1641611960742,4.0,138.63,138.55,27.66479]
[1641611960944,5.07199727,138.65,138.55,27.66479]
[1641611960945,4.0,138.64,138.55,27.66479]
[1641611961346,4.0,138.64,138.6,27.66479]
[1641611961546,5.07199727,138.65,138.6,27.66479]
[1641611961747,4.0,138.62,138.56,35.4971]
[1641611962046,9.769,138.62,138.55,27.66479]
[1641611962446,5.769,138.62,138.55,27.66479]
[1641611962646,9.07199727,138.65,138.55,27.66479]
[1641611962847,9.07199727,138.65,138.55,34.73279]
[1641611963046,4.0,138.63,138.55,34.73279]
[1641611963246,5.07199727,138.65,138.55,34.73279]
[1641611963645,4.0,138.62,138.55,7.068]
[1641611963846,9.07199727,138.64,138.55,12.13999727]
[1641611964047,9.07199727,138.64,138.59,27.66479]
[1641611964450,4.0,138.61,138.57,27.66479]
[1641611964646,7.386,138.61,138.57,27.66479]
[1641611964846,7.386,138.61,138.55,5.07199727]
[1641611964847,4.0,138.58,138.55,5.07199727]
[1641611965046,10.307,138.58,138.55,5.07199727]
[1641611965247,6.307,138.58,138.55,5.07199727]
[1641611965448,4.0,138.56,138.55,5.07199727]
[1641611965650,4.0,138.56,138.52,15.05115739]
[1641611965848,4.0,138.53,138.52,15.05115739]
[1641611966048,9.873,138.53,138.52,15.05115739]
[1641611966250,5.873,138.53,138.51,15.05115739]
[1641611966649,9.873,138.53,138.51,15.05115739]
[1641611967449,9.873,138.53,138.48,1.68916612]
[1641611967949,5.873,138.53,138.48,1.68916612]
[1641611968148,9.873,138.53,138.48,1.68916612]
[1641611968348,4.0,138.53,138.48,1.68916612]
[1641611968549,6.87,138.57,138.48,1.68916612]
[1641611968750,4.0,138.54,138.48,1.68916612]
[1641611969248,6.87,138.57,138.48,1.68916612]
[1641611969548,4.0,138.55,138.48,1.68916612]
[1641611969750,15.05115739,138.58,138.48,1.68916612]
[1641611970048,3.41542593,138.58,138.48,1.68916612]
[1641611970249,4.0,138.55,138.5,27.66479]
[1641611971753,4.0,138.58,138.5,27.66479]
[1641611971954,4.0,138.58,138.5,33.03679]
[1641611972254,19.05115739,138.59,138.54,27.66479]
[1641611972453,4.0,138.59,138.54,27.66479]
[1641611975255,4.0,138.56,138.54,27.66479]
[1641611975457,9.768,138.56,138.54,27.66479]
[1641611975656,4.0,138.55,138.5,42.71594739]
[1641611976056,5.768,138.56,138.5,42.71594739]
[1641611976258,5.768,138.56,138.5,70.38073739]
[1641611976457,9.768,138.56,138.5,70.38073739]
[1641611976657,5.768,138.56,138.5,70.38073739]
[1641611976860,34.873,138.61,138.51,1.68737367]
[1641611976861,15.05115739,138.6,138.51,1.68737367]
[1641611977465,4.0,138.55,138.51,1.68737367]
[1641611977664,6.024,138.55,138.51,1.68737367]
[1641611978063,10.024,138.55,138.51,1.68737367]
[1641611978962,6.024,138.55,138.51,1.68737367]
[1641611979763,10.024,138.55,138.51,1.68737367]
[1641611979965,6.024,138.55,138.51,1.68737367]
[1641611980168,67.20138384,138.61,138.51,1.68737367]
[1641611980465,4.0,138.55,138.51,1.68737367]
[1641611980664,4.0,138.53,138.51,1.68737367]
[1641611980866,6.001,138.55,138.51,1.68737367]
[1641611981066,4.0,138.53,138.51,1.68737367]
[1641611981264,4.0,138.52,138.51,1.68737367]
[1641611981465,4.679,138.52,138.46,60.3730463]
[1641611981669,4.679,138.52,138.46,24.6355463]
[1641611982267,19.05115739,138.59,138.46,31.84977275]
[1641611982467,4.0,138.56,138.5,27.66479]
[1641611982668,4.0,138.56,138.5,32.83379]
[1641611983369,4.0,138.57,138.5,32.83379]
[1641611983569,31.66479,138.59,138.5,32.83379]
[1641611984369,31.66479,138.59,138.51,1.68737367]
[1641611984570,27.66479,138.59,138.51,1.68737367]
[1641611984769,31.66479,138.59,138.51,1.68737367]
[1641611986374,40.61122645,138.61,138.53,27.66479]
[1641611986574,15.05115739,138.62,138.53,41.64237514]
[1641611986776,15.05115739,138.62,138.53,34.43179]
[1641611986979,15.05115739,138.62,138.55,7.20954544]
[1641611987981,15.05115739,138.62,138.56,1.68737367]
[1641611988176,25.75115739,138.67,138.56,1.68737367]
[1641611988377,15.05115739,138.67,138.56,42.96127367]
[1641611988577,15.05115739,138.67,138.61,27.66479]
[1641611988779,15.05115739,138.67,138.61,35.09279]
[1641611989280,3.40937393,138.67,138.61,35.09279]
[1641611989482,3.40937393,138.67,138.61,26.9009402]
[1641611990484,7.40937393,138.67,138.61,26.9009402]
[1641611990782,3.40937393,138.67,138.61,26.9009402]
[1641611992883,15.05115739,138.69,138.61,26.9009402]
[1641611993085,60.30319,138.71,138.61,26.9009402]
[1641611993283,4.0,138.7,138.61,26.9009402]
[1641611993483,60.30319,138.71,138.61,26.9009402]
[1641611993684,27.66479,138.71,138.62,7.20564923]
[1641611993885,15.05115739,138.72,138.62,7.20564923]
[1641611994485,15.05115739,138.72,138.67,27.66479]
[1641611994686,3.40746227,138.69,138.67,33.72579]
[1641611995587,3.40746227,138.71,138.67,33.72579]
[1641611997291,18.45861966,138.74,138.67,33.72579]
[1641611998290,15.05115739,138.74,138.67,33.72579]
[1641611998488,36.0378,138.75,138.67,33.72579]
[1641611999890,4.0,138.74,138.67,33.72579]
[1641612000292,15.05115739,138.77,138.67,33.72579]
[1641612000494,19.05115739,138.77,138.71,27.66479]
[1641612000693,15.05115739,138.77,138.71,35.27179]
[1641612001293,15.05115739,138.78,138.71,35.27179]
[1641612001992,15.05115739,138.78,138.71,27.66479]
[1641612002393,4.0,138.76,138.71,27.66479]
[1641612002596,4.91,138.76,138.71,27.66479]
[1641612002793,15.05115739,138.78,138.71,34.86576933]
[1641612002993,15.05115739,138.78,138.71,41.20376933]
[1641612003198,4.0,138.83,138.71,41.20376933]
[1641612003794,4.0,138.8,138.71,41.20376933]
[1641612003996,4.98,138.8,138.71,34.86576933]
[1641612004595,4.98,138.8,138.76,27.66479]
[1641612005594,4.0,138.81,138.76,27.66479]
[1641612006095,36.0791,138.85,138.76,27.66479]
[1641612006297,4.0,138.83,138.76,27.66479]
[1641612007799,36.0791,138.85,138.76,27.66479]
[1641612008000,4.0,138.82,138.76,27.66479]
[1641612010301,36.0791,138.85,138.76,27.66479]
[1641612010602,36.0791,138.85,138.8,27.66479]
[1641612010803,4.0,138.84,138.8,27.66479]
[1641612011003,34.86525083,138.88,138.8,27.66479]
[1641612011404,4.0,138.82,138.8,27.66479]
[1641612012105,34.86525083,138.88,138.8,27.66479]
[1641612012505,4.0,138.83,138.8,27.66479]
[1641612013205,4.0,138.87,138.8,27.66479]
[1641612013408,4.0,138.87,138.76,27.66479]
[1641612013808,4.0,138.81,138.76,27.66479]
[1641612014206,4.0,138.81,138.75,7.19890577]
[1641612014807,4.0,138.81,138.77,27.66479]
[1641612015008,4.0,138.83,138.77,27.66479]
[1641612015210,4.0,138.85,138.77,27.66479]
[1641612015409,42.71594739,138.88,138.77,27.66479]
[1641612015609,4.0,138.83,138.77,27.66479]
[1641612015810,4.0,138.84,138.77,27.66479]
[1641612016209,3.38210037,138.87,138.77,34.44379]
[1641612016210,15.05115739,138.86,138.77,34.44379]
[1641612016611,4.0,138.85,138.77,34.44379]
[1641612016812,4.0,138.85,138.83,27.66479]
[1641612017010,4.0,138.85,138.83,33.64879]
[1641612017611,18.43325776,138.87,138.83,33.64879]
[1641612017809,4.0,138.86,138.83,33.64879]
[1641612018211,4.0,138.86,138.83,21.37525719]
[1641612018418,15.05115739,138.87,138.83,21.37525719]
[1641612018611,4.0,138.86,138.83,21.37525719]
[1641612018811,3.3821912,138.85,138.83,21.37525719]
[1641612021020,15.05115739,138.86,138.83,21.37525719]
[1641612022118,19.05115739,138.86,138.83,21.37525719]
[1641612022318,15.05115739,138.86,138.83,21.37525719]
[1641612022718,3.3821912,138.85,138.83,21.37525719]
[1641612023520,15.05115739,138.86,138.83,21.37525719]
[1641612023721,19.05115739,138.87,138.83,21.37525719]
[1641612024520,3.3821912,138.86,138.83,21.37525719]
[1641612026127,5.07576531,138.85,138.83,21.37525719]
[1641612026530,4.0,138.84,138.83,15.39125719]
[1641612026729,4.0,138.84,138.79,34.86188237]
[1641612027128,4.0,138.83,138.79,34.86188237]
[1641612027931,5.07576531,138.82,138.79,34.86188237]
[1641612028131,10.27376531,138.82,138.79,34.86188237]
[1641612029031,5.07576531,138.81,138.79,27.66479]
[1641612029234,5.07576531,138.81,138.77,27.66479]
[1641612029432,9.07576531,138.81,138.77,27.66479]
[1641612029634,48.58875739,138.84,138.77,27.66479]
[1641612029834,18.45725109,138.81,138.77,27.66479]
[1641612030133,22.45725109,138.81,138.77,27.66479]
[1641612030833,18.45725109,138.8,138.77,27.66479]
[1641612033541,7.4060937,138.8,138.77,27.66479]
[1641612033742,3.4060937,138.8,138.77,27.66479]
[1641612034341,15.05115739,138.8,138.77,27.66479]
[1641612034543,4.0,138.78,138.77,27.66479]
[1641612034743,9.065,138.78,138.75,27.66479]
[1641612035144,12.4710937,138.78,138.75,27.66479]
[1641612035947,5.09709983,138.76,138.75,27.66479]
[1641612036949,9.80109983,138.76,138.75,27.66479]
[1641612037347,4.704,138.76,138.75,27.66479]
[1641612038448,8.704,138.76,138.75,27.66479]
[1641612038649,13.80109983,138.76,138.72,27.66479]
[1641612038850,9.80109983,138.76,138.71,5.07576531]
[1641612039049,4.0,138.73,138.71,5.07576531]
[1641612039249,5.577,138.73,138.71,5.07576531]
[1641612039449,5.577,138.73,138.68,32.74055531]
[1641612039450,4.0,138.72,138.68,32.74055531]
[1641612040656,4.0,138.72,138.68,27.66479]
[1641612043456,10.67409983,138.73,138.68,27.66479]
[1641612043656,4.0,138.69,138.65,5.07576531]
[1641612043856,4.0,138.67,138.65,5.07576531]
[1641612044057,5.52,138.69,138.65,5.07576531]
[1641612044457,4.0,138.66,138.65,5.07576531]
[1641612044658,9.944,138.66,138.65,5.07576531]
[1641612045257,9.944,138.66,138.62,34.42563375]
[1641612045458,5.944,138.66,138.62,34.42563375]
[1641612046157,5.944,138.66,138.62,32.74055531]
[1641612046357,9.944,138.66,138.62,27.66479]
[1641612046557,5.944,138.66,138.62,27.66479]
[1641612046758,5.09709983,138.71,138.62,27.66479]
[1641612046958,4.0,138.67,138.62,34.66379]
[1641612047159,9.09709983,138.71,138.65,27.66479]
[1641612047560,5.09709983,138.71,138.65,27.66479]
[1641612047858,4.0,138.66,138.65,27.66479]
[1641612048058,5.09709983,138.71,138.65,27.66479]
[1641612048258,4.0,138.66,138.65,27.66479]
[1641612049562,5.09709983,138.71,138.65,27.66479]
[1641612049763,5.09709983,138.71,138.65,19.47524642]
[1641612049963,4.0,138.68,138.65,19.47524642]
[1641612052064,4.0,138.68,138.61,7.20642813]
[1641612052466,4.0,138.66,138.6,39.05066531]
[1641612052764,43.80249983,138.72,138.6,5.07576531]
[1641612053264,4.0,138.71,138.6,5.07576531]
[1641612053465,4.0,138.65,138.64,27.66479]
[1641612053965,36.76188983,138.71,138.64,27.66479]
[1641612054264,4.0,138.65,138.64,27.66479]
[1641612054465,4.0,138.66,138.64,27.66479]
[1641612054664,32.76188983,138.71,138.64,27.66479]
[1641612055265,4.0,138.68,138.64,27.66479]
[1641612056866,5.09709983,138.7,138.64,27.66479]
[1641612057075,4.0,138.66,138.64,27.66479]
[1641612057267,5.593,138.66,138.64,27.66479]
[1641612058870,4.0,138.67,138.64,27.66479]
[1641612060175,5.09709983,138.7,138.64,27.66479]
[1641612060573,4.0,138.67,138.59,37.71776531]
[1641612060775,5.09709983,138.7,138.62,7.20590885]
[1641612060974,5.09709983,138.7,138.62,11.95090885]
[1641612061374,39.80249983,138.72,138.62,11.95090885]
[1641612061574,4.0,138.71,138.62,11.95090885]
[1641612062076,39.80249983,138.72,138.66,27.66479]
[1641612062276,39.80249983,138.72,138.66,32.44279]
[1641612062877,4.0,138.71,138.66,32.44279]
[1641612063075,39.80249983,138.72,138.66,32.44279]
[1641612063076,34.7054,138.72,138.66,32.44279]
[1641612063775,39.80249983,138.72,138.66,32.44279]
[1641612065178,4.0,138.71,138.66,32.44279]
[1641612065576,4.0,138.71,138.66,27.66479]
[1641612065778,39.80249983,138.72,138.66,27.66479]
[1641612066078,5.09709983,138.72,138.66,27.66479]
[1641612066279,5.09709983,138.71,138.66,27.66479]
[1641612067080,4.0,138.72,138.66,32.74055531]
[1641612067279,5.09709983,138.73,138.66,40.30755531]
[1641612067480,5.09709983,138.73,138.67,7.20331352]
[1641612067879,5.09709983,138.73,138.66,40.30755531]
[1641612068081,5.09709983,138.73,138.68,7.20253529]
[1641612068279,5.09709983,138.72,138.69,27.66479]
[1641612068479,5.09709983,138.72,138.69,35.43879]
[1641612069280,5.09709983,138.74,138.69,40.51455531]
[1641612070282,4.0,138.73,138.7,6.76787563]
[1641612070680,5.09709983,138.75,138.7,6.76787563]
[1641612070884,4.0,138.73,138.7,6.76787563]
[1641612071082,5.09709983,138.75,138.7,6.76787563]
[1641612071283,5.09709983,138.74,138.69,32.74055531]
[1641612072285,4.0,138.72,138.69,32.74055531]
[1641612073087,5.166,138.73,138.69,32.74055531]
[1641612073485,4.0,138.72,138.69,32.74055531]
[1641612073887,4.0,138.71,138.69,5.07576531]
[1641612074089,4.0,138.7,138.69,5.07576531]
[1641612074489,4.0,138.7,138.69,1.69319157]
[1641612075089,4.0,138.7,138.67,15.05115739]
[1641612075291,9.09709983,138.7,138.66,27.66479]
[1641612075493,5.09709983,138.7,138.66,27.66479]
[1641612077192,9.09709983,138.7,138.66,27.66479]
[1641612077995,5.09709983,138.7,138.66,27.66479]
[1641612078694,5.09709983,138.71,138.67,1.69206926]
[1641612078995,9.09709983,138.71,138.67,1.69206926]
[1641612080299,4.0,138.71,138.67,1.69206926]
[1641612083101,5.09709983,138.72,138.67,1.69206926]
[1641612083500,4.0,138.69,138.67,1.69206926]
[1641612083702,5.399,138.71,138.67,1.69206926]
[1641612083900,4.0,138.68,138.67,1.69206926]
[1641612084101,9.123,138.68,138.67,1.69206926]
[1641612084303,9.123,138.68,138.64,27.66479]
[1641612084502,5.123,138.68,138.64,27.66479]
[1641612085202,5.123,138.68,138.65,1.69160104]
[1641612086002,5.123,138.68,138.64,27.66479]
[1641612087301,4.0,138.67,138.64,27.66479]
[1641612088102,10.22009983,138.68,138.61,47.78215739]
[1641612088702,10.22009983,138.68,138.62,1.69242927]
[1641612088902,10.22009983,138.68,138.63,27.66479]
[1641612089704,10.22009983,138.68,138.65,5.10775951]
[1641612091710,5.09709983,138.68,138.65,5.10775951]
[1641612092110,5.09709983,138.69,138.66,5.10775951]
[1641612093312,9.09709983,138.7,138.67,5.10775951]
[1641612094714,5.09709983,138.7,138.67,5.10775951]
[1641612094914,4.0,138.69,138.67,5.10775951]
[1641612095814,9.09709983,138.69,138.66,6.80018878]
[1641612097118,5.09709983,138.69,138.66,6.80018878]
[1641612097319,4.0,138.67,138.66,6.80018878]
[1641612097518,4.0,138.67,138.66,1.69242927]
[1641612098018,4.0,138.67,138.64,22.97310218]
[1641612098220,14.05609983,138.68,138.62,15.05115739]
[1641612098821,4.0,138.63,138.62,15.05115739]